bitfinex/quotes_ETHUSD_20250219
["timestamp","ask_amount","ask_price","bid_price","bid_amount"]
[1739997094369,3.66986,2724.9,2724.5,0.7608]
[1739997094674,3.67001,2724.8,2724.5,0.7608]
[1739997095044,3.66986,2724.9,2724.5,0.7608]
[1739997095300,4.21973,2725.0,2724.5,4.43119]
[1739997095442,9.02946,2725.2,2724.6,3.67024]
[1739997095764,3.66971,2725.1,2724.5,1.570962]
[1739997096133,9.02946,2725.2,2724.6,3.67016]
[1739997096463,3.66964,2725.1,2724.6,3.67016]
[1739997096666,9.02946,2725.2,2724.6,3.67016]
[1739997097134,9.02946,2725.2,2724.7,3.67005]
[1739997097135,5.36,2725.2,2724.7,3.67005]
[1739997097334,5.36,2725.2,2724.8,0.7608]
[1739997097568,9.02947,2725.2,2724.8,0.7608]
[1739997097774,5.36,2725.2,2724.8,0.7608]
[1739997098264,3.66955,2725.2,2724.8,0.7608]
[1739997098468,3.66957,2725.2,2724.8,0.7608]
[1739997098671,3.66956,2725.2,2724.8,4.43078]
[1739997098867,0.55,2725.3,2724.8,0.7608]
[1739997099086,4.21935,2725.3,2724.8,0.7608]
[1739997099313,5.36,2725.4,2724.8,1.570899]
[1739997099451,5.36,2725.4,2724.8,0.7608]
[1739997099851,5.36,2725.4,2724.9,3.66985]
[1739997100461,3.66933,2725.3,2724.8,4.43071]
[1739997100667,4.42643,2725.3,2724.8,0.7608]
[1739997100952,4.42643,2725.3,2724.5,4.49247]
[1739997100953,3.66971,2725.1,2724.5,4.49247]
[1739997101251,3.66974,2725.0,2724.5,4.49247]
[1739997101561,3.66974,2725.0,2724.5,0.8221]
[1739997101765,4.21955,2725.2,2724.5,0.8221]
[1739997101966,4.21955,2725.2,2724.6,3.67017]
[1739997102183,4.21955,2725.2,2724.6,3.67014]
[1739997102685,5.36,2725.4,2725.1,0.8221]
[1739997103948,3.88482957,2725.8,2725.1,0.8221]
[1739997104156,5.36,2726.1,2725.2,3.66945]
[1739997104157,3.6688,2725.7,2725.2,3.66945]
[1739997104387,3.6688,2725.7,2725.3,3.66932]
[1739997105291,3.66852,2725.9,2725.3,4.485408]
[1739997105488,3.66864,2725.8,2725.3,4.485408]
[1739997106183,3.66864,2725.8,2725.3,0.816088]
[1739997107193,3.66864,2725.8,2725.3,4.485388]
[1739997107381,0.55,2726.0,2725.4,0.7672]
[1739997107584,3.66869,2725.8,2725.4,0.7672]
[1739997107795,3.6681,2726.3,2725.6,3.66888]
[1739997107971,4.40290098,2726.3,2725.7,4.48419]
[1739997108320,5.635,2726.5,2725.8,3.66856]
[1739997108486,9.02774,2726.5,2726.0,0.8155]
[1739997108671,3.6679,2726.4,2726.0,0.8155]
[1739997109060,3.66799,2726.3,2726.0,0.8155]
[1739997109498,7.33609,2726.3,2726.0,0.8155]
[1739997109699,3.66799,2726.3,2726.0,0.8155]
[1739997109866,3.66818,2726.2,2726.0,0.8155]
[1739997110073,3.66824,2726.1,2726.0,0.8155]
[1739997110283,3.66859,2725.9,2725.7,0.8155]
[1739997110510,3.66846,2726.0,2725.7,0.8155]
[1739997110713,3.66831,2726.1,2725.7,0.8155]
[1739997110910,3.66843,2726.0,2725.7,0.8155]
[1739997111082,3.66831,2726.1,2725.7,0.8155]
[1739997111083,3.66851,2725.9,2725.7,0.8155]
[1739997112101,3.66878,2725.7,2725.4,0.8155]
[1739997112873,3.66851,2725.9,2725.4,0.8155]
[1739997113099,3.66865,2725.8,2725.4,0.8155]
[1739997114111,3.66875,2725.8,2725.4,0.8155]
[1739997114318,3.66879,2725.7,2725.4,0.8155]
[1739997115339,3.66898,2725.6,2725.4,0.8155]
[1739997115686,3.66888,2725.7,2725.2,0.7975]
[1739997115886,3.66894,2725.6,2725.2,0.7975]
[1739997116123,4.42584,2725.8,2725.2,0.7975]
[1739997116294,3.66874,2725.8,2725.2,0.7975]
[1739997116627,3.6688,2725.7,2725.2,0.7975]
[1739997116799,3.6688,2725.7,2725.2,5.4076899]
[1739997118218,7.33766,2725.7,2725.2,5.4076899]
[1739997118398,3.6688,2725.7,2725.2,5.4076899]
[1739997118731,3.66825,2726.1,2725.5,3.66891]
[1739997118890,9.02812,2726.2,2725.7,3.66875]
[1739997119091,12.69633,2726.2,2725.8,0.791]
[1739997119293,3.6683,2726.1,2725.8,0.791]
[1739997119691,3.66838,2726.0,2725.8,0.791]
[1739997120249,9.02812,2726.2,2725.8,0.791]
[1739997120450,5.36,2726.2,2726.1,3.66824]
[1739997120726,6.15957959,2727.1,2726.7,3.66731]
[1739997120924,0.79957959,2727.1,2726.9,3.66713]
[1739997121096,0.79957959,2727.1,2726.8,0.7563]
[1739997121723,3.66683,2727.2,2726.8,0.7563]
[1739997121943,3.66691,2727.1,2726.8,0.7563]
[1739997122321,1.34238141,2727.2,2726.8,0.7563]
[1739997122835,3.66691,2727.1,2726.8,0.7563]
[1739997123043,3.66752,2726.7,2726.4,0.7524]
[1739997123338,3.66763,2726.6,2726.4,0.7524]
[1739997124542,3.66779,2726.5,2726.0,0.7705]
[1739997124721,3.66784,2726.4,2726.0,0.7705]
[1739997124924,3.66813,2726.2,2726.0,0.7705]
[1739997125235,3.66784,2726.4,2726.0,0.7705]
[1739997125437,3.66814,2726.2,2726.0,0.7705]
[1739997125616,0.366814,2726.1,2725.7,0.7529]
[1739997125938,3.66819,2726.2,2725.7,0.7529]
[1739997126140,3.6679,2726.4,2725.7,4.42161]
[1739997126438,0.55,2726.6,2725.9,3.6685]
[1739997126645,0.55,2726.6,2726.0,0.7891]
[1739997126846,3.66795,2726.4,2726.0,0.7891]
[1739997128015,3.66792,2726.4,2726.0,0.7891]
[1739997128218,4.21762,2726.6,2726.0,0.7891]
[1739997128417,3.6677,2726.5,2726.0,0.7891]
[1739997128637,0.788534,2726.4,2726.0,0.7891]
[1739997129450,8.124344,2726.4,2726.0,0.7891]
[1739997129632,4.456394,2726.4,2726.0,0.7891]
[1739997130032,0.788534,2726.4,2726.0,0.7891]
[1739997130255,4.21766,2726.6,2726.0,4.45744]
[1739997130442,7.88529,2726.6,2726.0,4.45744]
[1739997130639,3.66791,2726.4,2726.0,0.7891]
[1739997130958,7.3355,2726.5,2726.0,0.7891]
[1739997131122,3.6677,2726.5,2726.0,0.7891]
[1739997132043,3.6677,2726.5,2726.0,4.45737]
[1739997132888,3.66758,2726.6,2726.0,4.45737]
[1739997133016,0.88977656,2726.6,2726.2,3.66803]
[1739997133217,5.36,2726.9,2726.6,0.7689]
[1739997133422,6.1171,2727.3,2726.7,3.66742]
[1739997133743,3.66676,2727.2,2726.7,3.66739]
[1739997133944,4.936092,2727.2,2726.7,3.66739]
[1739997134533,1.269332,2727.2,2726.7,3.66739]
[1739997134949,4.936102,2727.2,2726.7,3.66739]
[1739997135259,1.269332,2727.2,2726.7,7.3347]
[1739997135554,1.269332,2727.2,2726.8,3.66729]
[1739997135758,0.73678444,2727.4,2726.6,4.43644]
[1739997135919,9.78333,2727.6,2727.1,0.7706]
[1739997136126,3.66623,2727.6,2727.1,0.7706]
[1739997136621,7.33265,2727.6,2727.1,0.7706]
[1739997136825,3.66638,2727.5,2727.1,0.7706]
[1739997137037,3.6665,2727.4,2727.1,0.7706]
[1739997138443,3.66683,2727.2,2726.6,3.66754]
[1739997138661,3.66683,2727.2,2726.5,4.453]
[1739997138959,3.66683,2727.2,2726.7,3.66743]
[1739997139323,0.55,2727.3,2726.8,3.66719]
[1739997139547,5.69557033,2727.3,2726.7,3.66734]
[1739997139746,3.66678,2727.2,2726.6,3.66756]
[1739997140062,3.66678,2727.2,2726.7,3.66732]
[1739997141025,3.66678,2727.2,2726.7,7.33467]
[1739997141233,3.66683,2727.2,2726.7,3.66732]
[1739997141765,3.66663,2727.3,2726.8,3.66724]
[1739997141981,9.81454326,2727.5,2726.9,4.4634]
[1739997142340,9.81454326,2727.5,2727.0,3.66703]
[1739997142691,0.27435257,2727.7,2727.2,0.7963]
[1739997142834,5.36,2728.0,2727.8,3.66595]
[1739997143032,5.36,2728.3,2727.8,0.7963]
[1739997143342,9.02529,2728.3,2727.8,0.7963]
[1739997143660,0.930329,2728.2,2727.8,0.7963]
[1739997143866,4.595779,2728.2,2727.8,0.7963]
[1739997144567,3.66556,2728.1,2727.8,0.7963]
[1739997148369,0.930329,2728.2,2727.8,0.7963]
[1739997148547,3.66555,2728.1,2727.8,0.7963]
[1739997148869,0.4595879,2728.0,2727.8,0.7963]
[1739997149273,3.66569,2728.0,2727.8,0.7963]
[1739997150068,3.66582,2727.9,2727.8,0.7963]
[1739997150237,3.66569,2728.0,2727.8,0.7963]
[1739997152185,3.66569,2728.0,2727.5,3.66633]
[1739997152186,4.42299,2727.9,2727.3,0.7723]
[1739997152358,3.66615,2727.7,2727.3,0.7723]
[1739997152563,0.67862566,2727.6,2727.0,0.7723]
[1739997152761,3.66636,2727.5,2727.0,0.7723]
[1739997153269,3.6665,2727.4,2727.0,0.7723]
[1739997153458,0.67862566,2727.6,2727.0,0.7723]
[1739997153659,4.34485566,2727.6,2727.0,4.43926]
[1739997153992,0.80110457,2727.5,2727.0,0.7723]
[1739997154148,8.01119566,2727.6,2727.0,0.7723]
[1739997154479,8.01119566,2727.6,2727.0,4.43931]
[1739997154787,4.34485566,2727.6,2727.0,4.43931]
[1739997154987,3.66638,2727.5,2727.0,4.43931]
[1739997155361,3.66638,2727.5,2727.0,4.43925]
[1739997155572,4.34493566,2727.6,2727.0,0.7723]
[1739997155762,4.2161,2727.7,2727.2,3.6667]
[1739997155964,3.66623,2727.6,2727.2,3.6667]
[1739997156183,0.55,2727.7,2726.7,0.7588]
[1739997156385,5.36,2728.0,2727.6,0.7588]
[1739997156682,3.66575,2728.0,2727.6,0.7588]
[1739997156983,3.66555,2728.1,2727.6,4.42502]
[1739997157178,4.47123595,2728.1,2727.6,4.42502]
[1739997157680,4.47123595,2728.1,2727.6,8.09114]
[1739997157891,4.47123595,2728.1,2727.6,4.42492]
[1739997158089,4.47123595,2728.1,2727.6,0.7588]
[1739997159074,8.13685595,2728.1,2727.6,0.7588]
[1739997159288,4.47123595,2728.1,2727.6,0.7588]
[1739997159663,0.80568595,2728.1,2727.6,4.42494]
[1739997159863,3.66539,2728.3,2727.7,3.66602]
[1739997159864,3.66532,2728.3,2727.7,3.66602]
[1739997160088,3.66548,2728.2,2727.7,3.66602]
[1739997160575,0.005,2728.4,2727.3,0.8164]
[1739997160761,0.005,2728.4,2728.0,0.8164]
[1739997161484,3.67016,2728.4,2728.0,0.8164]
[1739997162053,0.005,2728.4,2728.0,0.8164]
[1739997162492,0.005,2728.4,2728.3,3.66528]
[1739997163255,0.005,2728.4,2728.2,3.6654]
[1739997163459,0.005,2728.4,2728.3,4.44248]
[1739997164696,0.005,2728.4,2728.3,0.7772]
[1739997166073,3.67015,2728.4,2727.9,0.7772]
[1739997166272,7.33542,2728.4,2727.9,0.7772]
[1739997166472,3.6656,2728.1,2727.6,0.796]
[1739997166662,3.66569,2728.0,2727.6,0.796]
[1739997166864,4.2155,2728.2,2727.6,0.796]
[1739997167081,4.2155,2728.2,2727.6,4.46209]
[1739997167277,4.2155,2728.2,2727.7,3.666]
[1739997167470,4.2155,2728.2,2727.6,4.46209]
[1739997167997,4.2155,2728.2,2727.6,8.12824]
[1739997168199,3.66534,2728.3,2727.8,3.66587]
[1739997168403,3.66534,2728.3,2727.7,3.66608]
[1739997168778,3.66534,2728.3,2727.7,3.66599]
[1739997169378,3.67017,2728.4,2727.7,3.66599]
[1739997169580,7.33094,2728.2,2727.7,3.66599]
[1739997169802,3.66542,2728.2,2727.7,3.66599]
[1739997170169,3.6656,2728.1,2727.6,4.46221]
[1739997170365,3.66542,2728.2,2727.6,4.46221]
[1739997170600,3.66555,2728.1,2727.6,0.796]
[1739997170899,3.66555,2728.1,2727.6,4.46218]
[1739997171703,3.66542,2728.2,2727.6,4.46218]
[1739997171902,3.66542,2728.2,2727.6,5.275024]
[1739997172101,3.66542,2728.2,2727.7,3.66607]
[1739997172306,7.38985626,2728.4,2727.6,1.608844]
[1739997172307,0.005,2728.4,2727.6,0.812844]
[1739997172505,0.005,2728.4,2728.0,0.8145]
[1739997172715,0.005,2728.4,2728.2,3.66534]
[1739997173219,0.005,2728.4,2728.3,3.66528]
[1739997173405,0.005,2728.4,2728.3,4.48588]
[1739997173580,0.005,2728.4,2728.3,1.635722]
[1739997173787,0.005,2728.4,2728.3,5.301002]
[1739997178013,0.005,2728.4,2728.3,8.301002]
[1739997181215,0.005,2728.4,2728.3,13.671002]
[1739997182583,0.005,2728.4,2728.3,10.671002]
[1739997183315,0.005,2728.4,2728.3,5.37]
[1739997183831,0.005,2728.4,2728.3,9.03528]
[1739997186521,0.005,2728.4,2728.3,5.37]
[1739997187321,0.005,2728.4,2728.2,7.33068]
[1739997187489,0.005,2728.4,2728.3,3.66528]
[1739997187684,0.005,2728.4,2728.0,0.7502]
[1739997187917,0.005,2728.4,2728.0,1.36222]
[1739997188120,0.005,2728.4,2728.3,4.44968]
[1739997189315,0.005,2728.4,2728.3,7.44968]
[1739997191259,5.36,2729.1,2729.0,3.66434]
[1739997191440,3.12010659,2729.7,2729.3,3.66386]
[1739997191645,0.7571,2729.8,2729.3,4.396652]
[1739997192209,0.7571,2729.8,2729.3,0.732792]
[1739997192455,4.42039,2729.8,2729.3,0.732792]
[1739997192658,3.66342,2729.7,2729.3,0.732792]
[1739997192878,3.66342,2729.7,2728.8,4.47012]
[1739997192879,3.66375,2729.5,2728.8,4.47012]
[1739997193067,3.66392,2729.4,2728.8,0.8056]
[1739997193365,0.7524,2729.4,2728.9,3.6644]
[1739997193574,0.7524,2729.4,2728.6,4.47036]
[1739997193776,3.66401,2729.3,2728.6,0.8056]
[1739997194074,3.66401,2729.3,2728.7,3.66468]
[1739997194422,7.32806,2729.3,2728.6,4.11195]
[1739997194625,3.66401,2729.3,2728.6,0.44707]
[1739997194870,3.87250659,2729.4,2728.9,3.66446]
[1739997195171,3.66415,2729.2,2728.6,4.11185]
[1739997195356,3.66415,2729.2,2728.6,3.66478]
[1739997195836,7.53638659,2729.4,2728.7,3.66466]
[1739997196154,3.87250659,2729.7,2729.3,3.66389]
[1739997196517,0.7524,2729.7,2729.3,3.66389]
[1739997198121,1.3071,2729.5,2728.8,0.366466]
[1739997198455,0.7571,2728.9,2727.3,0.8168]
[1739997198654,0.7571,2727.7,2725.9,14.29]
[1739997198859,0.7571,2727.7,2727.4,3.66646]
[1739997199019,0.74921053,2727.9,2727.5,0.366646]
[1739997199620,0.7571,2728.0,2727.5,0.366646]
[1739997199825,3.87720659,2728.0,2727.2,3.6667]
[1739997200052,3.87720659,2728.0,2726.6,6.6675]
[1739997200254,7.54291659,2728.0,2727.1,3.6668]
[1739997200458,3.87720659,2728.0,2727.3,3.66661]
[1739997200761,0.7571,2728.0,2727.3,4.399951]
[1739997201455,0.7571,2728.0,2727.3,0.733341]
[1739997201772,0.7571,2728.0,2727.2,3.66663]
[1739997201964,0.7571,2728.0,2727.2,4.49433]
[1739997202167,0.7571,2728.0,2727.5,3.66636]
[1739997202526,0.7571,2728.0,2727.3,3.66652]
[1739997202727,0.7571,2728.0,2727.4,3.66648]
[1739997202935,0.7571,2728.3,2727.5,0.7333]
[1739997203164,0.7571,2728.3,2727.6,3.66612]
[1739997204065,0.7571,2728.3,2727.7,3.66606]
[1739997204692,0.7571,2728.3,2728.0,3.66566]
[1739997204851,0.7571,2728.3,2728.0,4.398819]
[1739997205029,0.7571,2728.6,2728.0,4.398819]
[1739997205325,0.7571,2728.6,2728.2,3.6654]
[1739997205532,0.7571,2728.9,2728.4,3.66511]
[1739997205731,0.7571,2728.9,2728.2,3.66533]
[1739997205931,3.66463,2728.8,2728.0,8.064419]
[1739997206127,3.66475,2728.7,2728.1,0.8818319]
[1739997207071,3.66475,2728.7,2728.1,4.5473519]
[1739997207361,4.42162,2728.9,2727.6,9.80496]
[1739997207362,4.21469,2728.8,2727.6,9.80496]
[1739997207577,3.665,2728.6,2727.8,3.66585]
[1739997207780,7.32999,2728.6,2727.9,3.66572]
[1739997207982,3.66499,2728.6,2728.0,3.66564]
[1739997208266,0.7571,2728.9,2728.2,3.66538]
[1739997208470,4.42167,2728.9,2728.2,3.66538]
[1739997208632,0.7571,2728.9,2728.2,3.66538]
[1739997208965,0.7571,2728.9,2728.2,3.6653]
[1739997209171,4.42162,2728.9,2728.3,0.4031864]
[1739997209463,3.66489,2728.6,2728.1,0.366564]
[1739997209662,7.3299,2728.6,2728.1,0.366564]
[1739997209865,3.6647,2728.8,2728.1,4.032034]
[1739997210062,3.6647,2728.8,2728.2,3.66533]
[1739997210263,3.6647,2728.8,2728.3,3.66526]
[1739997210644,3.6647,2728.8,2728.1,0.366564]
[1739997210865,3.6647,2728.8,2728.2,4.0686264]
[1739997211166,0.7571,2728.9,2728.4,3.66508]
[1739997211367,0.7571,2728.9,2728.4,3.66509]
[1739997212038,5.36,2729.0,2728.4,3.66513]
[1739997212259,9.02435,2729.0,2728.5,0.733041]
[1739997212831,12.68878,2729.0,2728.5,0.733041]
[1739997213744,9.02435,2729.0,2728.5,0.733041]
[1739997213945,3.66435,2729.0,2728.5,0.733041]
[1739997214156,3.66435,2729.0,2728.5,4.398031]
[1739997214357,3.66435,2729.0,2728.5,0.733041]
[1739997214557,3.66455,2728.9,2728.3,3.66528]
[1739997215167,3.66468,2728.8,2728.1,3.66546]
[1739997215357,3.66486,2728.7,2728.1,3.66546]
[1739997216367,0.55,2729.1,2727.9,6.1586]
[1739997216368,0.55,2728.9,2728.2,3.6654]
[1739997216542,0.55,2728.9,2728.3,3.66515]
[1739997216867,3.66467,2728.8,2728.2,3.66534]
[1739997217167,7.32939,2728.8,2728.2,3.66534]
[1739997217569,3.66467,2728.8,2728.2,3.66534]
[1739997217966,0.55,2728.9,2728.2,3.66534]
[1739997217967,3.66443,2729.0,2728.4,3.66512]
[1739997218170,8.36241,2729.2,2728.5,3.66501]
[1739997218465,4.69823,2729.2,2728.5,3.66501]
[1739997218671,3.66421,2729.1,2728.5,3.66501]
[1739997218844,4.69823,2729.2,2728.5,4.398023]
[1739997219171,3.66428,2729.1,2728.6,3.66483]
[1739997219873,3.66447,2729.0,2728.5,4.398023]
[1739997220175,3.66447,2729.0,2728.5,3.66501]
[1739997220472,3.66461,2728.8,2728.2,3.6654]
[1739997220646,7.32932,2728.8,2728.2,3.6654]
[1739997220850,7.32931,2728.8,2728.2,3.6654]
[1739997221372,3.66475,2728.7,2728.2,3.6654]
[1739997221559,3.66475,2728.7,2728.2,4.19497241]
[1739997221754,3.66461,2728.8,2728.2,4.19486241]
[1739997221960,0.55,2728.9,2728.2,3.66529]
[1739997222774,3.6648,2728.7,2728.2,3.66529]
[1739997223239,3.6648,2728.7,2728.1,0.8255]
[1739997223443,3.66489,2728.6,2728.1,4.49104]
[1739997223750,0.7571,2728.7,2728.0,3.66563]
[1739997223950,4.42191,2728.7,2728.1,4.569003]
[1739997224583,3.66488,2728.6,2728.1,4.569003]
[1739997225153,3.66488,2728.6,2728.1,0.903563]
[1739997225359,3.66488,2728.6,2728.1,4.569093]
[1739997226179,3.66502,2728.5,2727.9,3.66571]
[1739997226584,3.66534,2728.3,2727.8,0.7961]
[1739997226889,3.66534,2728.3,2727.5,3.66626]
[1739997227073,0.55,2728.5,2727.5,0.7594]
[1739997227074,3.66565,2728.1,2727.5,0.7594]
[1739997227387,4.42253,2728.2,2727.6,3.66615]
[1739997227747,4.42253,2728.2,2727.5,0.7594]
[1739997227950,4.42253,2728.2,2727.6,3.66621]
[1739997228182,4.21557,2728.1,2727.5,4.42575]
[1739997228682,0.55,2728.1,2727.5,0.7594]
[1739997228889,0.55,2728.1,2727.6,3.6662]
[1739997229669,0.55,2728.1,2727.6,3.66612]
[1739997231073,0.55,2728.1,2727.7,3.66608]
[1739997231876,5.36,2728.3,2727.9,3.66573]
[1739997233192,5.36,2728.3,2727.9,7.33148]
[1739997233352,5.36,2728.3,2727.9,4.398878]
[1739997233556,5.36,2728.3,2728.0,3.66568]
[1739997237202,5.36,2728.3,2728.0,3.66562]
[1739997237703,0.55,2728.4,2728.0,3.66562]
[1739997238006,0.55,2728.4,2728.0,3.6656]
[1739997238205,0.7571,2728.5,2728.0,3.6656]
[1739997238389,5.36,2728.6,2728.3,3.66522]
[1739997238704,5.36,2728.6,2728.2,3.66541]
[1739997240705,5.36,2728.6,2728.3,3.66527]
[1739997240928,5.36,2728.6,2728.3,4.513767]
[1739997241280,5.36,2728.6,2728.3,3.66527]
[1739997242379,5.36,2728.6,2728.2,3.6654]
[1739997243096,5.36,2728.6,2728.3,3.66525]
[1739997243598,4.42172,2728.8,2728.3,3.66525]
[1739997243998,8.08642,2728.8,2728.3,3.66525]
[1739997244194,3.66482,2728.7,2728.3,3.66527]
[1739997244400,3.66482,2728.7,2728.2,3.66541]
[1739997244613,3.66482,2728.7,2727.6,0.7647]
[1739997244614,0.55,2728.2,2727.6,0.7647]
[1739997244815,3.66535,2728.3,2727.6,0.7647]
[1739997245017,3.66535,2728.3,2727.7,3.66599]
[1739997245527,3.11880443,2728.4,2727.8,3.66594]
[1739997245699,3.11880443,2728.4,2727.9,3.66576]
[1739997245893,6.78402443,2728.4,2727.9,3.66576]
[1739997246098,6.78402443,2728.4,2727.6,4.43081]
[1739997246286,3.6653,2728.3,2727.8,3.66595]
[1739997246814,3.6653,2728.3,2727.8,3.66588]
[1739997247415,6.78399443,2728.4,2727.9,3.66581]
[1739997248508,0.55,2728.4,2727.9,4.398998]
[1739997248817,0.55,2728.4,2727.9,3.66575]
[1739997249715,0.7571,2728.5,2728.1,3.66549]
[1739997250018,5.36,2728.6,2728.2,3.6654]
[1739997250225,3.66502,2728.5,2727.9,4.46062]
[1739997250393,7.33011,2728.5,2727.9,4.906682]
[1739997250600,12.14368443,2728.6,2728.0,3.66567]
[1739997250984,12.14368443,2728.6,2727.9,4.906682]
[1739997250985,12.14368443,2728.6,2728.1,3.66548]
[1739997253158,12.14368443,2728.6,2728.1,3.66547]
[1739997254022,15.80866443,2728.6,2728.1,3.66547]
[1739997254189,3.66502,2728.5,2728.1,3.66547]
[1739997254791,3.66502,2728.5,2728.1,4.36018877]
[1739997254987,5.36,2728.6,2728.5,3.66501]
[1739997255223,0.7571,2729.0,2728.4,3.66505]
[1739997255523,0.55,2728.1,2727.2,0.8216]
[1739997255723,4.42332,2727.6,2726.9,0.8216]
[1739997255924,3.11880443,2727.4,2726.6,10.75116]
[1739997256150,3.66697,2727.1,2726.6,0.892]
[1739997256303,3.66769,2726.6,2726.1,0.8216]
[1739997256497,3.66769,2726.6,2725.7,4.4903]
[1739997256498,3.87590443,2726.5,2725.7,4.4903]
[1739997256695,3.87590443,2726.5,2725.8,3.66854]
[1739997257092,0.7571,2726.5,2725.8,3.66854]
[1739997257296,5.36,2727.0,2725.9,0.8216]
[1739997257517,3.11880443,2726.7,2726.0,0.38216]
[1739997257722,3.11880443,2726.7,2725.9,0.8216]
[1739997258431,3.66758,2726.6,2725.9,0.8216]
[1739997258638,3.66758,2726.6,2725.9,4.4901]
[1739997258928,6.78625443,2726.7,2725.9,4.4901]
[1739997259102,6.78625443,2726.7,2725.9,4.49001]
[1739997259302,6.78625443,2726.7,2726.0,0.449001]
[1739997259501,6.78625443,2726.7,2726.0,4.117281]
[1739997262300,3.11880443,2726.7,2726.1,3.66812]
[1739997262505,3.11880443,2726.7,2726.2,3.66808]
[1739997262712,3.11880443,2726.7,2726.2,4.4466161]
[1739997263216,5.36,2727.0,2726.6,3.6675]
[1739997263412,0.7571,2727.1,2726.8,3.6672]
[1739997263637,5.36,2727.8,2727.2,3.66674]
[1739997263638,3.87590443,2727.5,2727.2,3.66674]
[1739997263840,4.90092857,2727.5,2727.0,3.66703]
[1739997264038,8.56731857,2727.5,2726.8,7.3344]
[1739997264363,8.56731857,2727.5,2726.8,3.66718]
[1739997264571,3.6665,2727.4,2726.6,4.4891]
[1739997264705,4.90092857,2727.5,2726.4,3.6678]
[1739997264914,3.11880443,2726.9,2726.4,4.64936361]
[1739997265104,3.11880443,2726.9,2726.4,3.66773]
[1739997266035,3.11880443,2726.9,2726.2,9.038]
[1739997266346,3.11880443,2726.9,2726.4,3.66783]
[1739997268543,3.11880443,2726.9,2726.2,3.668]
[1739997268843,3.11880443,2726.9,2726.0,0.751]
[1739997268844,0.7571,2726.7,2726.1,3.66816]
[1739997269439,4.42455,2726.7,2726.1,3.66816]
[1739997270250,3.11880443,2726.3,2725.6,4.44092]
[1739997270475,0.7571,2726.2,2725.7,7.33748]
[1739997270610,0.7571,2726.2,2725.8,4.402388]
[1739997270943,0.7571,2726.5,2725.9,3.66851]
[1739997271112,4.42487,2726.5,2725.9,3.66851]
[1739997271312,3.11880443,2726.3,2725.8,3.66864]
[1739997271607,0.9955778,2726.7,2725.5,0.7721]
[1739997271608,0.49009286,2727.4,2725.5,3.0]
[1739997271810,6.1171,2726.8,2726.7,3.66743]
[1739997272016,3.11880443,2727.1,2726.0,4.44043]
[1739997272017,0.7571,2727.1,2726.9,3.66703]
[1739997272520,5.36,2727.2,2727.0,3.66703]
[1739997272725,5.36,2727.2,2726.9,3.66716]
[1739997272947,5.36,2727.2,2726.7,3.66733]
[1739997273129,12.14567443,2727.2,2726.6,3.66757]
[1739997273328,12.14557443,2727.2,2726.6,3.66757]
[1739997273521,12.14557443,2727.2,2726.6,4.401106]
[1739997273745,12.14557443,2727.2,2726.6,0.733536]
[1739997273946,3.11880443,2726.9,2726.2,3.66805]
[1739997274131,4.42447,2726.8,2726.2,3.66805]
[1739997274324,3.6675,2726.7,2726.0,7.33657]
[1739997274530,6.78684443,2726.3,2725.7,3.66871]
[1739997274731,3.11880443,2726.3,2725.8,3.66863]
[1739997274947,12.78590443,2726.6,2725.8,3.66863]
[1739997275148,3.6677,2726.5,2725.8,3.66863]
[1739997275519,15.90347443,2726.6,2726.0,3.66828]
[1739997276119,3.66771,2726.5,2726.0,3.66828]
[1739997277253,12.23590443,2726.6,2726.0,3.66828]
[1739997277548,12.23590443,2726.6,2726.1,3.66817]
[1739997277745,15.90349443,2726.6,2726.0,4.035108]
[1739997278151,12.23590443,2726.6,2726.0,4.035108]
[1739997278350,6.1171,2726.6,2726.4,3.66782]
[1739997278513,0.7571,2726.6,2726.4,3.66782]
[1739997278717,0.7571,2726.6,2726.4,0.366782]
[1739997280345,0.7571,2726.6,2726.3,3.6679]
[1739997280545,0.7571,2726.6,2726.2,3.6681]
[1739997281126,0.7571,2726.6,2726.2,3.668]
[1739997281963,6.78664443,2726.4,2725.9,3.66843]
[1739997282257,6.78664443,2726.4,2725.7,3.66876]
[1739997282258,5.15880444,2726.3,2725.7,3.66876]
[1739997282439,4.42514,2726.3,2725.7,3.66876]
[1739997283060,3.66844,2726.0,2725.3,4.53052]
[1739997283367,8.09409,2726.0,2725.3,3.76282]
[1739997283660,3.66859,2725.9,2725.4,0.743225]
[1739997283824,3.66859,2725.9,2725.3,3.7629]
[1739997284024,3.66859,2725.9,2725.3,0.0936]
[1739997284621,3.66859,2725.9,2725.3,3.76285]
[1739997284821,4.42559,2726.0,2725.4,3.66911]
[1739997285024,0.7571,2726.0,2725.5,3.66904]
[1739997285438,3.66852,2725.9,2725.3,7.43214]
[1739997285761,0.7571,2726.0,2725.5,3.66896]
[1739997286126,4.42555,2726.0,2725.3,4.506054]
[1739997286326,8.09402,2726.0,2725.3,8.175274]
[1739997286565,4.42555,2726.0,2725.4,3.66916]
[1739997286735,4.42555,2726.0,2725.5,3.66894]
[1739997286925,4.42555,2726.0,2725.4,3.66908]
[1739997287131,0.7571,2726.0,2725.5,3.66894]
[1739997287752,4.42549,2726.0,2725.5,3.66894]
[1739997288265,0.7571,2726.0,2725.4,3.66916]
[1739997288557,6.78745443,2725.8,2725.3,0.0936]
[1739997288767,6.78745443,2725.8,2725.3,3.76285]